bitfinex-derivatives/quotes_ETHF0:USTF0_20250928
["timestamp","ask_amount","ask_price","bid_price","bid_amount"]
[1759051730724,0.7577,3995.8,3995.7,0.80721377]
[1759051731119,0.7577,3995.8,3995.7,0.47311377]
[1759051732129,0.7577,3995.8,3995.7,0.80721377]
[1759051733727,0.7577,3995.8,3995.7,0.00301377]
[1759051733928,0.7577,3995.8,3995.7,0.48051377]
[1759051734129,0.7577,3995.8,3995.7,0.82021377]
[1759051734426,0.7577,3995.8,3995.7,0.25501377]
[1759051735031,0.7577,3995.8,3995.7,0.48051377]
[1759051735224,0.7577,3995.8,3995.7,0.82021377]
[1759051737431,1.20794,3995.8,3995.7,0.82021377]
[1759051738232,1.20794,3995.8,3995.7,0.22851377]
[1759051738631,1.20794,3995.8,3995.7,0.56821377]
[1759051739423,1.20794,3995.8,3995.7,1.01846377]
[1759051739731,3.65803,3995.9,3995.8,0.45024]
[1759051739931,3.87253,3995.9,3995.8,0.7798]
[1759051740132,4.19313,3995.9,3995.8,0.7798]
[1759051742044,3.7429,3995.9,3995.8,1.23004]
[1759051742332,3.5284,3996.3,3996.1,0.89029]
[1759051742639,3.5284,3996.3,3996.2,1.0318]
[1759051742836,4.0579603,3996.3,3996.2,1.0318]
[1759051743232,4.2724603,3996.3,3996.2,1.0318]
[1759051743538,4.4935603,3996.3,3996.2,1.0318]
[1759051747238,3.964,3996.3,3996.2,1.0318]
[1759051748336,4.49406854,3996.3,3996.2,1.48199]
[1759051755043,4.49406854,3996.3,3996.2,1.0318]
[1759051756547,4.94424854,3996.3,3996.2,1.0318]
[1759051757340,4.94424854,3996.3,3996.2,1.48199]
[1759051758340,4.49406854,3996.3,3996.2,1.48199]
[1759051758541,1.28626854,3996.3,3996.2,1.48199]
[1759051759046,1.28626854,3996.3,3996.2,2.35022025]
[1759051759243,0.53006854,3996.3,3996.2,2.35022025]
[1759051759443,3.5375,3996.7,3996.6,0.7428]
[1759051759444,4.21364,3996.7,3996.6,0.7428]
[1759051759645,4.96213839,3996.7,3996.6,1.86303025]
[1759051759845,4.96213839,3996.7,3996.6,2.31318025]
[1759051760047,4.51199839,3996.7,3996.6,2.31318025]
[1759051761745,0.7731,3996.7,3996.6,2.31318025]
[1759051762045,3.6579,3997.1,3996.6,2.31318025]
[1759051762046,0.3297,3997.2,3997.1,1.19289]
[1759051762242,3.2078,3997.6,3997.3,1.19286]
[1759051762243,0.5557,3997.4,3997.3,1.19286]
[1759051762445,1.08634188,3997.4,3997.3,1.19286]
[1759051762743,0.226,3998.0,3997.9,0.45]
[1759051762943,0.226,3998.0,3997.9,2.31303025]
[1759051763357,0.3297,3998.2,3998.1,1.21708]
[1759051764858,0.5489,3998.2,3998.1,1.21708]
[1759051769652,3.23711829,3998.9,3998.0,0.1267]
[1759051769653,0.55428417,3998.4,3998.3,1.21706]
[1759051769858,0.55428417,3998.4,3998.3,2.33729025]
[1759051770360,0.75998417,3998.4,3998.3,2.33729025]
[1759051772561,0.75998417,3998.4,3998.3,1.88733025]
[1759051772757,0.75998417,3998.4,3998.3,0.2185]
[1759051773063,0.75998417,3998.4,3998.3,1.88733025]
[1759051776056,0.2192,3999.3,3999.2,0.437]
[1759051776263,0.7573,3999.3,3999.2,2.33718025]
[1759051777057,0.76047474,3999.3,3999.2,2.33963799]
[1759051777257,0.76047474,3999.3,3999.2,2.08763799]
[1759051777462,0.76047474,3999.3,3999.2,2.33963799]
[1759051781662,0.00317474,3999.3,3999.2,2.33963799]
[1759051786973,0.55477474,3999.3,3999.2,2.33963799]
[1759051787473,0.00317474,3999.3,3999.2,2.33963799]
[1759051787775,0.55477474,3999.3,3999.2,2.33963799]
[1759051790077,0.76047474,3999.3,3999.2,2.33963799]
[1759051790376,0.76047474,3999.3,3999.2,2.08763799]
[1759051790563,0.76047474,3999.3,3999.2,2.33963799]
[1759051791372,0.00317474,3999.3,3999.2,2.33963799]
[1759051791566,0.33557474,3999.3,3999.2,2.33963799]
[1759051791877,0.55477474,3999.3,3999.2,2.33963799]
[1759051792976,1.28971981,3999.3,3999.2,0.25445774]
[1759051794279,4.49751981,3999.3,3999.2,0.25445774]
[1759051797369,4.49751981,3999.3,3999.2,1.66108799]
[1759051801083,4.49751981,3999.3,3999.2,2.11093799]
[1759051801279,4.94735981,3999.3,3999.2,2.11093799]
[1759051801481,4.94735981,3999.3,3999.2,1.66108799]
[1759051802383,0.53241981,3999.3,3999.2,2.31893799]
[1759051804186,0.00317474,3999.3,3999.2,7.31893799]
[1759051804684,1.12023025,4000.7,3999.2,7.31893799]
[1759051804685,0.554,4000.1,4000.0,1.19616]
[1759051804881,1.08425307,4000.1,4000.0,2.44999025]
[1759051805783,1.08612175,4000.1,4000.0,2.44999025]
[1759051805985,1.31282175,4000.1,4000.0,2.44999025]
[1759051806291,1.31282175,4000.1,4000.0,1.86663025]
[1759051810385,0.44976,4000.0,3999.6,0.3186]
[1759051810583,0.7687,3999.7,3999.6,0.44981]
[1759051810891,1.29895307,3999.7,3999.6,0.70181]
[1759051811384,1.29895307,3999.7,3999.0,3.3414]
[1759051811385,0.7687,3999.4,3999.0,3.3414]
[1759051811591,0.7687,3999.3,3999.2,0.45230774]
[1759051811782,1.29862727,3999.3,3999.2,1.43790774]
[1759051813184,1.07722727,3999.3,3999.2,1.43790774]
[1759051813385,0.85652727,3999.3,3999.2,1.43790774]
[1759051813585,0.52992727,3999.3,3999.2,1.43790774]
[1759051813784,0.7687,3999.5,3999.4,0.86483]
[1759051813991,1.29840305,3999.5,3999.4,2.05166025]
[1759051814491,1.42410305,3999.5,3999.4,2.05166025]
[1759051815287,1.42410305,3999.5,3999.4,0.65803]
[1759051815495,0.89193,3999.4,3999.3,1.39363025]
[1759051815686,1.42163305,3999.4,3999.3,1.39363025]
[1759051815885,1.42163305,3999.4,3999.3,1.64563025]
[1759051816085,1.74823305,3999.4,3999.3,1.64563025]
[1759051816292,1.29840305,3999.4,3999.3,1.64563025]
[1759051816592,1.29840305,3999.4,3999.3,1.85383025]
[1759051817893,1.29840305,3999.4,3999.3,1.60183025]
[1759051818095,1.29840305,3999.4,3999.3,1.85383025]
[1759051820396,1.29840305,3999.4,3999.3,1.60183025]
[1759051820600,1.29840305,3999.4,3999.3,0.9856]
[1759051822302,1.29840305,3999.4,3999.3,1.43544]
[1759051822598,1.07700305,3999.4,3999.3,2.51578912]
[1759051822802,3.5344,3999.7,3999.6,1.18341]
[1759051822987,4.06477167,3999.7,3999.6,2.26375912]
[1759051823195,4.28547167,3999.7,3999.6,2.26375912]
[1759051823905,3.2078,3999.7,3999.6,2.26375912]
[1759051824202,3.7466,3999.7,3999.6,2.26375912]
[1759051824806,3.7466,3999.7,3999.6,2.51575912]
[1759051825393,3.7466,3999.7,3999.6,1.43541]
[1759051825599,4.4826339,3999.7,3999.6,0.4588]
[1759051825796,4.4826339,3999.7,3999.2,1.08280686]
[1759051825797,0.4286,3999.4,3999.3,0.2116]
[1759051825993,1.27481055,3999.4,3999.3,0.252]
[1759051826893,1.27481055,3999.4,3999.2,0.00245774]
[1759051826894,1.19434,3999.3,3999.2,0.00245774]
[1759051827094,1.19434,3999.3,3999.2,0.25445774]
[1759051827295,1.72468866,3999.3,3999.2,0.25445774]
[1759051829503,1.72468866,3999.3,3999.2,0.00245774]
[1759051829704,1.72468866,3999.3,3999.2,0.25445774]
[1759051830005,1.27484866,3999.3,3999.2,0.25445774]
[1759051830198,1.27484866,3999.3,3999.2,0.46605774]
[1759051831208,1.27484866,3999.3,3999.2,1.00075774]
[1759051832900,0.5388,3999.5,3999.4,0.87233]
[1759051833198,1.19434,3999.3,3999.2,0.00245774]
[1759051833400,1.72479507,3999.3,3999.2,0.25445774]
[1759051833594,4.93259507,3999.3,3999.2,0.25445774]
[1759051836706,4.48275507,3999.3,3999.2,0.25445774]
[1759051837008,4.48275507,3999.3,3999.2,0.78985774]
[1759051838212,4.48284987,3999.3,3999.2,0.78985774]
[1759051839311,4.48284987,3999.3,3999.2,0.46605774]
[1759051839904,4.48284987,3999.3,3999.2,0.25445774]
[1759051841403,4.48284987,3999.3,3999.2,0.70430774]
[1759051841605,4.48284987,3999.3,3999.2,1.23970774]
[1759051842208,4.48284987,3999.3,3999.2,0.91590774]
[1759051844313,4.93268987,3999.3,3999.2,0.46605774]
[1759051844508,4.93268987,3999.3,3999.2,0.00245774]
[1759051847307,4.48284987,3999.3,3999.2,1.19860774]
[1759051847513,3.73834987,3999.3,3999.2,1.19860774]
[1759051847714,3.2078,3999.8,3999.7,1.1961]
[1759051848015,3.2078,3999.8,3999.7,2.52844912]
[1759051848016,0.53077235,3999.8,3999.7,2.52844912]
[1759051848217,0.00186868,4000.1,4000.0,1.32096]
[1759051848416,0.53252711,4000.1,4000.0,1.32096]
[1759051849219,0.53252711,4000.1,4000.0,2.40130912]
[1759051849419,0.00186868,4000.1,4000.0,7.40130912]
[1759051850020,0.74636868,4000.1,4000.0,6.32096]
[1759051850321,0.74636868,4000.1,4000.0,1.44806]
[1759051851822,0.00186868,4000.1,4000.0,1.57296]
[1759051852121,0.00186868,4000.1,4000.0,9.78076]
[1759051854625,3.7466,4000.7,4000.6,1.2228]
[1759051854828,3.9662,4000.7,4000.6,1.4748]
[1759051855420,3.96859859,4000.7,4000.6,1.4748]
[1759051856823,3.96859859,4000.7,4000.6,1.0251]
[1759051857220,3.96859859,4000.7,4000.6,1.4748]
[1759051860328,3.96859859,4000.7,4000.6,0.7017]
[1759051860635,0.7696,4000.6,4000.5,0.4497]
[1759051860823,0.7696,4000.6,4000.5,0.7017]
[1759051862533,0.7696,4000.3,4000.2,0.44974]
[1759051862733,0.7696,4000.3,4000.2,0.70174]
[1759051863034,0.7696,4000.3,4000.2,0.92594]
[1759051863333,0.7696,4000.3,4000.2,1.47484]
[1759051863730,0.55,4000.3,4000.2,1.47484]
[1759051863931,3.97979859,4000.7,4000.6,0.9956]
[1759051864133,3.97979859,4000.7,4000.6,1.2228]
[1759051864838,3.42449859,4000.7,4000.6,1.2228]
[1759051865333,3.76019859,4000.7,4000.6,1.2228]
[1759051866932,3.42449859,4000.7,4000.6,1.2228]
[1759051867528,0.21669859,4000.7,4000.6,1.2228]
[1759051868634,0.77199859,4000.7,4000.6,0.6739]
[1759051869036,0.77199859,4000.7,4000.6,1.2228]
[1759051870936,0.1309,4000.5,4000.4,0.44971]
[1759051871137,0.5195,4000.5,4000.4,1.43791]
[1759051872030,0.00239859,4000.7,4000.6,0.4497]
[1759051872235,0.52189859,4000.7,4000.6,2.26624912]
[1759051872636,0.73029859,4000.7,4000.6,2.26624912]
[1759051876337,1.26070093,4000.7,4000.6,2.26624912]
[1759051878845,0.53280093,4000.7,4000.6,2.26624912]
[1759051879034,0.84360093,4000.7,4000.6,2.26624912]
[1759051879239,0.53280093,4000.7,4000.6,2.26624912]
[1759051880039,0.00239859,4000.7,4000.6,2.26624912]
[1759051880644,0.00239859,4000.7,4000.6,2.05206497]
[1759051881347,0.52189859,4000.7,4000.6,2.05206497]
[1759051881548,0.00239859,4000.7,4000.6,2.30406497]
[1759051888748,0.00239859,4000.7,4000.6,2.05206497]
[1759051888957,0.74239859,4000.7,4000.6,2.30406497]
[1759051893644,0.74,4000.3,4000.2,0.2265]
[1759051893943,0.74,4000.1,4000.0,4.40996]
[1759051894147,0.74,4000.1,4000.0,4.66196]
[1759051894346,0.74,4000.1,4000.0,4.79356]
[1759051895043,0.2087,4000.5,4000.4,0.2265]
[1759051895350,0.73956598,4000.5,4000.4,2.32028497]
[1759051895652,1.05236598,4000.5,4000.4,2.32028497]
[1759051896047,3.21019859,4000.7,4000.6,0.8867]
[1759051896242,3.74099992,4000.7,4000.6,1.4541]
[1759051897450,0.53319992,4000.7,4000.6,1.4541]
[1759051897850,0.00239859,4000.7,4000.6,1.4541]
[1759051898642,3.2078,4001.7,4001.5,0.6575]
[1759051898856,3.7293,4001.7,4001.6,1.87056497]
[1759051899050,4.26008911,4001.7,4001.6,1.87056497]
[1759051899249,4.47858911,4001.7,4001.6,1.30316497]
[1759051899449,4.47858911,4001.7,4001.6,1.55516497]
[1759051899648,4.48101418,4001.7,4001.6,1.55516497]
[1759051899855,4.48101418,4001.7,4001.6,1.87056497]
[1759051900552,4.93059418,4001.7,4001.6,0.252]
[1759051903461,0.5615,4001.5,4001.3,1.18156497]
[1759051903650,0.74,4001.4,4001.3,1.40806497]
[1759051903849,0.74,4001.4,4001.3,1.66006497]
[1759051904250,0.74,4001.4,4001.3,1.11816497]
[1759051905260,0.74,4001.4,4001.3,1.34466497]
[1759051906260,0.74,4001.4,4001.3,1.66006497]
[1759051906752,0.74,4001.4,4001.3,1.87056497]
[1759051906955,0.2087,4001.4,4001.3,1.87056497]
[1759051907657,0.5215,4001.4,4001.3,1.87056497]
[1759051908056,3.73172507,4001.7,4001.6,0.437]
[1759051908253,4.26201949,4001.7,4001.6,1.87056497]
[1759051908455,4.26201949,4001.7,4001.6,2.32014497]
[1759051908656,4.48051949,4001.7,4001.6,2.32014497]
[1759051910567,4.48051949,4001.7,4001.6,1.45398]
[1759051917662,0.74242507,4001.7,4001.6,1.45398]
[1759051917861,0.31522507,4001.7,4001.6,1.45398]
[1759051918066,0.00242507,4001.7,4001.6,1.45398]
[1759051922964,0.3564,4002.5,4002.4,0.44949]
[1759051923169,0.2221,4002.5,4002.4,2.30555497]
[1759051923870,0.5457,4002.5,4002.4,2.30555497]
[1759051924071,0.54768701,4002.5,4002.4,2.30815606]
[1759051925264,0.76838701,4002.5,4002.4,2.30815606]
[1759051927169,0.76838701,4002.5,4002.4,2.05715606]
[1759051927372,0.90058701,4002.5,4002.4,1.11976606]
[1759051927572,0.90058701,4002.5,4002.4,0.25360109]
[1759051927975,0.90058701,4002.5,4002.4,0.00260109]
[1759051928175,0.90058701,4002.5,4002.4,0.25360109]
[1759051929075,1.43030176,4002.5,4002.4,0.00260109]
[1759051930879,0.7602,4001.9,4001.8,1.31572497]
[1759051931078,0.7602,4001.9,4001.8,1.56672497]
[1759051931377,0.7602,4001.9,4001.8,1.79282497]
[1759051931774,0.7602,4001.9,4001.8,1.79525504]
[1759051932777,0.7602,4001.9,4001.8,2.32295504]
[1759051932972,0.5432,4001.9,4001.8,2.32295504]
[1759051934174,0.218,4001.9,4001.8,2.32295504]
[1759051934367,3.968,4002.2,4002.1,1.20333]
[1759051934568,4.49770852,4002.2,4002.1,2.32049497]
[1759051934773,4.49770852,4002.2,4002.1,1.87096497]
[1759051934983,4.49770852,4002.2,4002.1,1.11716497]
[1759051939484,4.94722852,4002.2,4002.1,1.11716497]
[1759051940382,1.01354,4002.0,4001.9,0.44955]
[1759051940583,1.86844852,4002.0,4001.9,0.70055]
[1759051941284,1.86844852,4002.0,4001.9,0.92665]
[1759051942488,1.86844852,4002.0,4001.9,0.67565]
[1759051942786,1.86844852,4002.0,4001.9,0.92665]
[1759051943986,1.86844852,4002.0,4001.9,1.25925]
[1759051944491,1.86844852,4002.0,4001.9,1.00825]
[1759051944680,1.86844852,4002.0,4001.9,1.25925]
[1759051946287,1.86844852,4002.0,4001.9,0.92665]
[1759051946590,1.86844852,4002.0,4001.9,1.25925]
[1759051947188,1.86844852,4002.0,4001.9,1.00825]
[1759051947394,1.86844852,4002.0,4001.9,1.25925]
[1759051948190,1.41890852,4002.0,4001.9,1.25925]
[1759051948392,1.41890852,4002.0,4001.9,1.48715]
[1759051948689,1.28990852,4002.0,4001.9,1.48715]
[1759051958885,1.73944852,4002.0,4001.9,1.0376]
[1759051959086,1.41820852,4002.0,4001.9,1.48715]
[1759051959795,1.86774852,4002.0,4001.9,1.48715]
[1759051959989,1.86774852,4002.0,4001.9,1.0376]
[1759051960594,1.86774852,4002.0,4001.9,1.48715]
[1759051961093,1.41820852,4002.0,4001.9,1.48715]
[1759051961793,1.28990852,4002.0,4001.9,1.48715]
[1759051965097,1.86774852,4002.0,4001.9,1.48715]
[1759051967100,1.22535,4001.9,4001.8,0.00243007]
[1759051967293,6.75505852,4001.9,4001.8,0.00243007]
[1759051969396,1.75505852,4001.9,4001.8,0.21453007]
[1759051969596,1.75505852,4001.9,4001.8,0.54713007]
[1759051970094,1.75505852,4001.9,4001.8,0.21453007]
[1759051970399,1.75505852,4001.9,4001.8,0.00243007]
[1759051978199,1.75505852,4001.9,4001.0,0.44965]
[1759051978200,0.7519,4001.1,4001.0,0.44965]
[1759051978399,1.28160852,4001.1,4001.0,0.70065]
[1759051979010,1.28160852,4001.1,4001.0,0.91315]
[1759051979209,1.73124852,4001.1,4001.0,1.2502941]
[1759051980107,1.28160852,4001.1,4001.0,1.4707941]
[1759051982413,0.7519,4001.1,4001.0,1.4707941]
[1759051983509,1.73001929,4001.1,4001.0,0.0025441]
[1759051986813,1.72972172,4001.1,4001.0,0.0025441]
[1759051988409,0.7519,4000.4,4000.3,0.44973]
[1759051988614,0.7519,4000.4,4000.3,0.70073]
[1759051988810,0.7519,4000.4,4000.3,0.91323]
[1759051989009,3.2078,4000.8,4000.7,0.44969]
[1759051989204,3.9541217,4000.8,4000.7,2.29625488]
[1759051989404,3.5333,4001.3,4001.2,0.44963]
[1759051989604,4.27959373,4001.3,4001.2,2.29619488]
[1759051989814,4.48769373,4001.3,4001.2,2.29619488]
[1759051994616,4.48769373,4001.3,4001.2,1.21723]
[1759051995727,4.48769373,4001.3,4001.2,0.44963]
[1759051995918,0.4227,4000.8,4000.7,0.70315547]
[1759051996220,0.7374,4000.8,4000.7,0.70315547]
[1759051996922,0.7374,4000.8,4000.7,0.90845547]
[1759051998223,0.7374,4000.8,4000.7,1.25025547]
[1759051998717,0.7374,4000.8,4000.7,1.46985547]
[1759051999423,3.9452,4001.3,4001.2,1.21633]
[1759051999722,4.47358324,4001.3,4001.2,1.21633]
[1759052004925,1.26578324,4001.3,4001.2,1.21633]
[1759052008018,1.26578324,4001.3,4001.2,1.46733]
[1759052009223,1.71540324,4001.3,4001.2,1.46733]
[1759052014125,1.26578324,4001.3,4001.2,1.46733]
[1759052017430,1.71540324,4001.3,4001.2,1.46733]
[1759052017732,1.26578324,4001.3,4001.2,1.46733]
[1759052018236,1.71540324,4001.3,4001.2,1.46733]
[1759052024534,1.26578324,4001.3,4001.2,1.46733]
[1759052025540,1.71540324,4001.3,4001.2,1.46733]
[1759052027839,1.26578324,4001.3,4001.2,1.46733]
[1759052029042,1.71540324,4001.3,4001.2,1.46733]
[1759052029233,1.26578324,4001.3,4001.2,1.46733]
[1759052031143,1.71540324,4001.3,4001.2,1.46733]
[1759052034546,1.71540324,4001.3,4001.2,1.21633]
[1759052034845,1.71540324,4001.3,4001.2,1.0177]
[1759052036238,0.4379,4001.2,4001.1,0.2111]
[1759052036444,1.41591324,4001.2,4001.1,1.18724]
[1759052036841,0.52838324,4001.2,4001.1,1.18724]
[1759052037146,0.52838324,4001.2,4001.1,0.87304]
[1759052037344,3.2078,4001.4,4001.3,0.87302]
[1759052037545,3.7367319,4001.4,4001.3,2.3043853]
[1759052038447,3.2078,4001.9,4001.8,1.18716]
[1759052038745,3.73661384,4001.9,4001.8,1.43816]
[1759052040444,3.2078,4001.9,4001.8,1.43816]
[1759052042343,3.5316,4001.9,4001.8,1.43816]
[1759052042952,3.2078,4001.9,4001.8,1.43816]
[1759052043139,3.2078,4002.4,4002.0,0.861]
[1759052043444,3.9695,4002.4,4002.3,2.0532753]
[1759052043645,4.49728108,4002.4,4002.3,2.0532753]
[1759052044541,3.9695,4002.4,4002.3,2.0532753]
[1759052046151,3.9695,4002.4,4002.3,1.6037653]
[1759052046750,4.49681758,4002.4,4002.3,1.1171653]
[1759052047442,0.55,4001.6,4001.5,3.5435]
[1759052047648,0.7617,4001.6,4001.5,1.9901653]
[1759052048050,0.7617,4001.6,4001.5,2.3043653]
[1759052048747,0.7617,4001.6,4001.5,1.6037653]
[1759052048953,0.7617,4001.6,4001.5,1.1171653]
[1759052049253,0.7617,4001.6,4001.5,1.6424653]
[1759052050352,0.7617,4001.6,4001.5,1.3914653]
[1759052050554,0.7617,4001.6,4001.5,1.3282653]
[1759052051251,0.7617,4001.6,4001.0,3.3312]
[1759052051252,0.4496,4001.5,4001.0,3.3312]
[1759052051441,0.4496,4001.5,4000.7,0.00247547]
[1759052051442,0.7395,4000.8,4000.7,0.98585547]
[1759052051646,0.7395,4000.8,4000.7,2.10302077]
[1759052051945,0.7395,4000.8,4000.7,2.31412077]
[1759052052548,0.7395,4000.8,4000.7,1.33814077]
[1759052053045,0.7395,4000.8,4000.7,1.65334077]
[1759052054849,0.7395,4000.8,4000.7,1.86444077]
[1759052057751,0.7395,4000.8,4000.7,1.40234077]
[1759052057956,0.7395,4000.8,4000.7,1.33814077]
[1759052059255,0.7395,4000.8,4000.7,1.65334077]
[1759052060658,0.7395,4000.8,4000.7,0.99827547]
[1759052062864,1.18917,4000.8,4000.7,0.99827547]
[1759052063270,1.18917,4000.8,4000.7,1.44796547]
[1759052064966,0.7395,4000.8,4000.7,1.44796547]
[1759052065764,1.18917,4000.8,4000.7,1.44796547]
[1759052065965,0.7395,4000.8,4000.7,1.44796547]
[1759052070271,0.66555,4001.0,4000.9,0.4286]
[1759052070574,1.00685,4001.0,4000.9,0.7481]
[1759052070773,1.21445,4001.0,4000.9,0.7481]
[1759052071069,0.4235,3999.8,3999.7,3.7463]
[1759052071263,0.7648,3999.8,3999.7,3.9973]
[1759052071461,0.3413,4000.2,3999.8,0.3195]
[1759052071668,3.2078,4000.3,4000.2,0.5385]
[1759052071870,0.1245,4001.0,4000.6,1.1978]
[1759052071871,3.2078,4000.8,4000.6,1.1978]
[1759052072074,3.2078,4000.8,4000.7,2.07869202]
[1759052072868,3.765,4000.8,4000.7,2.07869202]
[1759052075575,3.9726,4000.8,4000.7,2.07869202]
[1759052076375,3.2078,4000.8,4000.7,2.07869202]
[1759052076974,3.765,4000.8,4000.7,2.07869202]
[1759052078180,3.9726,4000.8,4000.7,2.07869202]
[1759052078373,4.49978299,4000.8,4000.7,2.07869202]
[1759052079275,4.29218299,4000.8,4000.7,2.07869202]
[1759052079475,1.08438299,4000.8,4000.7,2.07869202]
[1759052079675,1.29198299,4000.8,4000.7,2.07869202]
[1759052083079,0.52718299,4000.8,4000.7,2.07869202]
[1759052083384,3.2078,4001.3,4001.2,0.7481]
[1759052083581,3.73568409,4001.3,4001.2,0.9991]
[1759052083781,4.29288409,4001.3,4001.2,0.9991]
[1759052084586,4.50048409,4001.3,4001.2,0.9991]
[1759052086982,0.44969,4000.7,4000.6,0.32207391]
[1759052087194,0.7648,4000.7,4000.6,1.00167391]
[1759052088082,0.7648,4000.7,4000.6,2.08126593]
[1759052095490,0.5562,4001.0,4000.9,0.4398]
[1759052095689,0.52864733,4001.0,4000.9,2.54665202]
[1759052097697,1.08484733,4001.0,4000.9,2.54665202]
[1759052100702,1.08484733,4001.0,4000.9,2.09699202]
[1759052101306,0.4297,4000.7,4000.6,0.54797391]
[1759052101494,0.7624,4000.7,4000.6,0.79897391]
[1759052101693,1.29104733,4000.7,4000.6,0.79897391]
[1759052103596,1.29104733,4000.7,4000.6,0.54797391]
[1759052103795,1.29104733,4000.7,4000.6,0.79897391]
[1759052104389,1.29104733,4000.7,4000.6,0.22137391]
[1759052104587,1.29104733,4000.7,4000.6,0.47237391]
[1759052105203,1.29104733,4000.7,4000.6,0.79897391]
[1759052105405,1.29104733,4000.7,4000.6,0.54797391]
[1759052105707,1.29104733,4000.7,4000.6,0.25357391]
[1759052107002,6.29104733,4000.7,4000.6,0.00257391]
[1759052112118,0.44979,3999.8,3999.4,1.52941202]
[1759052112321,1.18909,3999.8,3999.7,3.4588]
[1759052112620,1.18909,3999.8,3999.7,4.0072]
[1759052112809,1.18909,3999.8,3999.7,3.4588]
[1759052113213,1.18909,3999.8,3999.7,3.67404066]
[1759052114111,1.18909,3999.8,3999.7,4.00904066]
[1759052114817,0.7393,3999.8,3999.7,4.22914066]
[1759052116824,0.7393,3999.8,3999.7,4.67894066]
[1759052117923,0.7393,3999.8,3999.7,4.42794066]
[1759052118120,0.7393,3999.8,3999.7,4.67894066]
[1759052118424,0.7393,3999.8,3999.7,1.47114066]
[1759052118921,0.7393,3999.8,3999.7,2.55073268]
[1759052119127,0.5311,4000.0,3999.9,1.21828]
[1759052119917,1.18906,4000.0,3999.9,0.7685]
[1759052120123,0.7393,4000.0,3999.9,1.21828]
[1759052121525,1.18906,4000.0,3999.9,0.7685]
[1759052121727,1.32146,4000.0,3999.9,0.7685]
[1759052123227,1.32146,4000.0,3999.9,1.21828]
[1759052123427,0.7393,4000.0,3999.9,1.21828]
[1759052124028,0.5311,4000.0,3999.9,1.21828]
[1759052125027,0.5311,4000.0,3999.9,2.08497375]
[1759052126024,0.5311,4000.0,3999.9,1.21828]
[1759052126229,0.5311,4000.0,3999.9,2.08497375]
[1759052127031,0.7457,4000.0,3999.9,2.08497375]
[1759052131132,3.2078,4000.8,4000.7,0.7834]
[1759052131428,3.2078,4000.8,4000.7,1.90109375]
[1759052131730,3.4205,4000.8,4000.7,1.90109375]
[1759052131926,3.2078,4000.8,4000.7,1.90109375]
[1759052132329,3.2078,4001.3,4001.2,0.4446]
[1759052132629,3.73669232,4001.3,4001.2,1.90109375]
[1759052132827,4.25859232,4001.3,4001.2,1.90109375]
[1759052133132,4.25859232,4001.3,4001.2,2.35072375]
[1759052134733,0.5584,4001.0,4000.9,0.44966]
[1759052134933,1.08729232,4001.0,4000.8,0.86669375]
[1759052135236,0.7365,4000.7,4000.6,3.8818]
[1759052135534,0.7365,4000.7,4000.6,4.4716]
[1759052135832,0.7365,4000.7,4000.6,4.6919]
[1759052136234,0.7365,4000.7,4000.6,5.55859375]
[1759052137538,0.7365,4000.7,4000.6,2.35079375]
[1759052138937,0.7365,4001.0,4000.9,1.23306]
[1759052139137,1.26498072,4001.0,4000.9,1.23306]
[1759052139434,1.39608072,4001.0,4000.9,1.23306]
[1759052139931,1.39608072,4001.0,4000.9,1.48406]
[1759052140641,1.39608072,4001.0,4000.9,2.35075375]
[1759052141137,0.8676,4001.0,4000.9,2.35075375]
[1759052141634,0.8676,4001.0,4000.9,1.23306]
[1759052141835,1.39595076,4001.0,4000.9,1.23306]
[1759052142137,0.8676,4001.0,4000.9,1.23306]
[1759052142739,0.7365,4001.0,4000.9,1.23306]
[1759052144139,0.8676,4001.0,4000.9,1.23306]
[1759052147138,1.3959544,4001.0,4000.9,1.23306]
[1759052154243,1.2648544,4001.0,4000.9,1.23306]
[1759052161051,0.5283544,4001.0,4000.9,1.23306]
[1759052162552,1.2718544,4001.0,4000.9,1.23306]
[1759052162751,1.4044544,4001.0,4000.9,0.92496]
[1759052162951,1.4044544,4001.0,4000.9,1.24566]
[1759052165254,1.4044544,4001.0,4000.9,0.92496]
[1759052165554,1.4044544,4001.0,4000.9,0.70066]
[1759052165756,0.44971,4000.5,4000.1,0.44975]
[1759052166051,0.88454,4000.2,4000.0,0.3207]
[1759052166243,1.27346404,4000.1,4000.0,0.98306]
[1759052166443,1.27346404,4000.1,4000.0,1.44996]
[1759052169157,1.27346404,4000.1,4000.0,1.0002]
[1759052169753,1.27346404,4000.1,4000.0,0.251]
[1759052170947,1.27346404,4000.1,3999.7,0.00184066]
[1759052170948,0.7525,3999.8,3999.7,0.00184066]
[1759052171148,5.80674779,3999.8,3999.7,0.00184066]
[1759052171359,4.49026404,3999.8,3999.7,0.73394066]
[1759052171752,3.96096404,3999.8,3999.7,0.73394066]
[1759052172960,4.27356404,3999.8,3999.7,0.73394066]
[1759052175462,3.7436,3999.8,3999.7,0.73394066]
[1759052176861,3.9603,3999.8,3999.7,0.73394066]
[1759052177166,3.431,3999.8,3999.7,0.73394066]
[1759052177667,3.7436,3999.8,3999.7,0.73394066]
[1759052178666,3.9603,3999.8,3999.7,0.73394066]
[1759052180968,3.9603,3999.8,3999.7,1.18374066]
[1759052181167,3.9603,3999.8,3999.7,1.43474066]
[1759052185365,4.41009,3999.8,3999.7,0.25284066]
[1759052185574,4.41009,3999.8,3999.7,0.00184066]
[1759052185965,3.9603,3999.8,3999.7,0.00184066]
[1759052186375,3.9603,3999.8,3999.7,0.45164066]
[1759052186564,3.9603,3999.8,3999.7,1.00894066]
[1759052187082,3.9603,3999.8,3999.7,0.67554066]
[1759052190675,3.9603,3999.8,3999.7,1.21894066]
[1759052192281,3.9603,3999.8,3999.7,2.29903331]
[1759052192578,3.7436,3999.8,3999.7,2.29903331]
[1759052192878,0.5358,3999.8,3999.7,2.29903331]
[1759052194481,3.2078,4000.2,4000.1,0.44975]
[1759052194778,4.17955742,4000.2,4000.1,1.00705]
[1759052194980,4.17955742,4000.2,4000.1,1.21705]
[1759052195180,4.50605742,4000.2,4000.1,1.21705]
[1759052195569,4.50605742,4000.2,4000.1,6.21705]
[1759052195570,0.52965742,4000.2,4000.1,6.21705]
[1759052195782,0.553,4000.6,4000.5,1.21701]
[1759052195984,1.08305966,4000.6,4000.5,2.54810265]